bitfinex/quotes_SOLUSD_20240620
["timestamp","ask_amount","ask_price","bid_price","bid_amount"]
[1718851290125,0.51,134.43,134.4,7.4404]
[1718851293814,0.51,134.43,134.36,6.3861]
[1718851293815,0.17,134.42,134.39,7.4409]
[1718851294423,0.17,134.42,134.4,7.4404]
[1718851294718,0.17,134.42,134.41,7.4399]
[1718851295417,0.17,134.42,134.36,6.3861]
[1718851295642,0.17,134.42,134.38,7.4411]
[1718851295827,20.17,134.42,134.38,7.4411]
[1718851296035,0.51,134.41,134.38,7.4411]
[1718851296218,0.51,134.41,134.39,7.441]
[1718851297919,0.51,134.41,134.33,6.3558]
[1718851297920,0.17,134.4,134.33,6.3558]
[1718851298620,0.17,134.4,134.38,7.4412]
[1718851299015,7.4412,134.39,134.33,6.3558]
[1718851299321,0.17,134.4,134.33,6.3558]
[1718851299322,0.17,134.4,134.37,7.442]
[1718851301237,20.0,134.42,134.33,6.3558]
[1718851301435,21.2026,134.45,134.41,7.4394]
[1718851301436,20.0,134.44,134.41,7.4394]
[1718851301839,20.2902,134.49,134.45,7.4374]
[1718851302020,27.436,134.48,134.43,7.4385]
[1718851302518,7.436,134.48,134.43,7.4385]
[1718851302735,20.2902,134.49,134.39,15.2813]
[1718851302929,7.4363,134.48,134.43,7.4386]
[1718851303548,27.7257,134.49,134.44,7.438]
[1718851304046,20.0,134.48,134.44,7.438]
[1718851304422,20.0,134.48,134.39,21.6798]
[1718851304842,7.4371,134.46,134.41,7.4394]
[1718851305037,7.4368,134.47,134.42,7.4393]
[1718851305230,20.0,134.46,134.43,7.4385]
[1718851305426,0.17,134.45,134.43,7.4385]
[1718851305843,0.17,134.45,134.42,7.4391]
[1718851306339,23.3697,134.52,134.47,7.4361]
[1718851306647,15.9357,134.52,134.48,7.4356]
[1718851306853,20.0,134.51,134.49,7.4354]
[1718851307025,20.0,134.51,134.48,7.4358]
[1718851307425,20.0,134.52,134.48,7.4358]
[1718851307833,15.9357,134.55,134.42,22.2717]
[1718851308026,7.4334,134.53,134.47,7.4363]
[1718851308333,23.3682,134.55,134.43,22.33]
[1718851308645,7.4328,134.54,134.49,7.4351]
[1718851309153,7.4328,134.54,134.49,7.4352]
[1718851309328,20.0,134.53,134.5,7.4349]
[1718851309528,20.0,134.54,134.5,7.4349]
[1718851309729,20.0,134.54,134.43,22.33]
[1718851309923,20.0,134.54,134.48,7.4359]
[1718851310152,0.68,134.53,134.49,7.435]
[1718851310328,0.68,134.53,134.5,7.4349]
[1718851310534,0.68,134.53,134.49,7.4351]
[1718851310738,20.0,134.54,134.51,7.4339]
[1718851311251,20.0,134.54,134.52,7.4338]
[1718851311450,20.0,134.56,134.53,7.4332]
[1718851311636,15.0798,134.58,134.54,7.4326]
[1718851312026,27.1675,134.61,134.47,1.65447533]
[1718851312233,7.4285,134.62,134.52,6.1003]
[1718851312463,7.4285,134.62,134.53,46.48537168]
[1718851312749,7.43,134.59,134.54,7.4324]
[1718851313126,118.5725,134.61,134.52,6.1003]
[1718851313430,0.17,134.59,134.52,8.08960398]
[1718851313633,0.17,134.58,134.55,7.4321]
[1718851313838,0.68,134.58,134.55,7.4321]
[1718851314037,7.4311,134.57,134.52,7.4334]
[1718851314241,0.17,134.56,134.48,21.2805]
[1718851314442,0.68,134.58,134.49,69.20631943]
[1718851314649,8.1105,134.58,134.53,7.4328]
[1718851315352,0.68,134.58,134.49,65.0]
[1718851315541,0.68,134.58,134.55,7.4319]
[1718851315952,0.68,134.58,134.54,7.4325]
[1718851317454,0.68,134.58,134.49,65.0]
[1718851317654,7.4314,134.57,134.52,7.4337]
[1718851317849,0.68,134.56,134.52,7.4337]
[1718851318050,0.68,134.56,134.45,15.1802]
[1718851318255,20.68,134.56,134.45,15.1802]
[1718851318451,0.17,134.54,134.45,15.1802]
[1718851318757,20.68,134.56,134.45,59.8802]
[1718851319054,20.68,134.56,134.52,7.4336]
[1718851319262,28.1116,134.56,134.51,7.434]
[1718851319635,7.4323,134.55,134.5,7.4349]
[1718851319841,0.17,134.53,134.49,7.4351]
[1718851320047,0.17,134.53,134.45,15.1802]
[1718851320260,0.17,134.53,134.5,7.4348]
[1718851320651,0.17,134.53,134.47,7.4364]
[1718851320851,0.17,134.51,134.44,259.7003]
[1718851321058,0.17,134.49,134.41,22.6865]
[1718851321258,20.51,134.49,134.46,7.4368]
[1718851321854,0.51,134.49,134.47,7.4364]
[1718851322551,0.51,134.49,134.48,7.436]
[1718851322763,0.51,134.49,134.46,7.4366]
[1718851322961,0.51,134.49,134.45,7.4375]
[1718851323259,20.0,134.5,134.41,22.6865]
[1718851323260,20.0,134.52,134.5,7.4349]
[1718851323461,0.34,134.53,134.5,7.4349]
[1718851323668,0.17,134.52,134.5,7.4349]
[1718851323873,20.34,134.54,134.49,7.4352]
[1718851324167,27.4328,134.54,134.49,7.4352]
[1718851324754,15.0798,134.57,134.47,6.0909]
[1718851324957,23.1595,134.6,134.48,103.2861]
[1718851325151,20.0,134.59,134.49,0.17]
[1718851325363,12.0875,134.61,134.49,0.68]
[1718851325569,12.0876,134.61,134.56,7.4315]
[1718851325768,38.0599,134.63,134.49,0.68]
[1718851325957,15.7299,134.63,134.6,7.4292]
[1718851326149,4.6587,134.64,134.61,7.4288]
[1718851326362,7.4267,134.65,134.55,6.0909]
[1718851326558,56.6238,134.67,134.56,45.0]
[1718851326755,7.4281,134.63,134.57,7.4308]
[1718851326958,100.0,134.66,134.56,7.4312]
[1718851326959,7.4284,134.62,134.56,7.4312]
[1718851327171,7.4265,134.66,134.6,7.429]
[1718851327368,15.7299,134.67,134.6,7.429]
[1718851327550,0.17,134.65,134.58,7.4303]
[1718851327751,0.17,134.63,134.58,7.4303]
[1718851328076,0.17,134.63,134.59,7.4296]
[1718851328260,0.34,134.63,134.52,0.17]
[1718851328457,0.34,134.62,134.52,65.0]
[1718851328657,0.34,134.61,134.58,7.4304]
[1718851328863,0.34,134.6,134.58,7.4304]
[1718851329657,0.17,134.61,134.59,7.4298]
[1718851329872,0.34,134.61,134.59,7.4298]
[1718851330272,0.34,134.61,134.52,65.0]
[1718851330458,0.17,134.59,134.51,6.0909]
[1718851330649,0.51,134.59,134.52,7.4338]
[1718851330858,0.17,134.58,134.47,259.7048]
[1718851331183,0.17,134.54,134.47,259.7048]
[1718851331387,0.51,134.58,134.47,259.7048]
[1718851331388,7.9407,134.58,134.53,7.4329]
[1718851331671,0.17,134.57,134.53,7.4329]
[1718851331884,20.51,134.57,134.54,7.4327]
[1718851332063,0.17,134.56,134.54,7.4327]
[1718851332369,0.51,134.56,134.54,7.4327]
[1718851332873,0.51,134.56,134.55,7.4321]
[1718851333062,20.0,134.58,134.54,7.4325]
[1718851333260,0.51,134.57,134.54,7.4325]
[1718851333466,0.34,134.57,134.55,7.4321]
[1718851333767,0.17,134.57,134.55,7.4321]
[1718851333970,0.51,134.58,134.55,7.4321]
[1718851334360,0.17,134.57,134.48,0.17]
[1718851334568,0.17,134.57,134.48,65.17]
[1718851335181,0.17,134.57,134.53,7.4332]
[1718851335772,23.5899,134.63,134.57,7.4307]
[1718851335975,4.6587,134.64,134.49,0.34]
[1718851336156,134.7257,134.67,134.51,22.54]
[1718851336157,20.0,134.66,134.51,22.54]
[1718851336363,27.4264,134.66,134.61,7.4288]
[1718851336667,7.4267,134.65,134.6,7.4292]
[1718851336869,20.0,134.64,134.53,6.1048]
[1718851337174,20.0,134.64,134.6,7.4293]
[1718851337369,27.4273,134.64,134.59,7.4297]
[1718851337571,0.51,134.63,134.59,7.4297]
[1718851337874,0.51,134.63,134.61,7.4288]
[1718851338578,0.51,134.63,134.6,7.4291]
[1718851338974,0.51,134.63,134.54,0.62761277]
[1718851339165,0.51,134.63,134.54,65.62761277]
[1718851339363,0.51,134.63,134.6,7.4291]
[1718851340874,120.18149383,134.71,134.54,87.54]
[1718851341059,7.4257,134.67,134.62,7.4282]
[1718851341260,20.0,134.66,134.55,0.51]
[1718851341454,38.5598,134.7,134.55,0.51]
[1718851341675,100.0,134.67,134.54,20.0]
[1718851341866,7.4283,134.62,134.54,20.0]
[1718851342176,15.0139,134.63,134.53,6.1048]
[1718851342365,20.34,134.62,134.53,6.1048]
[1718851342555,20.51,134.62,134.58,7.43]
[1718851342760,0.17,134.61,134.58,7.43]
[1718851342973,20.51,134.62,134.59,7.4299]
[1718851344082,20.51,134.62,134.53,6.1048]
[1718851344083,0.17,134.61,134.57,7.4308]
[1718851344377,0.17,134.59,134.47,6.5732]
[1718851344574,8.1102,134.59,134.54,7.4325]
[1718851344778,20.0,134.58,134.47,6.5732]
[1718851345074,0.17,134.62,134.48,22.37]
[1718851345279,20.68,134.62,134.6,7.4293]
[1718851345474,20.68,134.62,134.48,22.37]
[1718851345663,28.1084,134.62,134.57,7.4308]
[1718851346286,0.17,134.6,134.47,6.5732]
[1718851346467,0.17,134.6,134.53,7.4329]
[1718851346468,0.17,134.57,134.53,7.4329]
[1718851346781,0.68,134.57,134.54,7.4326]
[1718851347462,20.0,134.59,134.47,28.9432]
[1718851347670,20.0,134.59,134.57,7.4305]
[1718851347870,0.17,134.6,134.56,7.4314]
[1718851348063,0.17,134.58,134.47,6.5732]
[1718851348264,0.17,134.6,134.49,22.37]
[1718851348475,20.51,134.6,134.56,7.4314]
[1718851348763,0.17,134.59,134.56,7.4314]
[1718851351288,0.17,134.59,134.5,0.17]
[1718851351464,0.17,134.59,134.5,45.0]
[1718851351665,0.17,134.59,134.55,7.4319]
[1718851351865,0.17,134.59,134.56,7.4315]
[1718851352468,0.17,134.59,134.57,7.431]
[1718851353689,0.17,134.59,134.56,7.4314]
[1718851353885,0.17,134.59,134.55,7.432]
[1718851354482,0.17,134.59,134.56,7.4316]
[1718851354788,0.34,134.59,134.56,7.4316]
[1718851354981,0.17,134.58,134.56,7.4316]
[1718851355373,0.17,134.56,134.47,6.5732]
[1718851355569,7.4332,134.54,134.49,7.4351]
[1718851355876,20.51,134.53,134.5,7.4347]
[1718851356086,20.51,134.53,134.51,7.4343]
[1718851356674,0.51,134.53,134.51,7.4343]
[1718851356876,0.51,134.53,134.5,7.4346]
[1718851357588,20.51,134.53,134.49,7.4353]
[1718851357897,20.51,134.53,134.5,7.4348]
[1718851358099,20.51,134.53,134.49,7.4352]
[1718851358705,20.51,134.53,134.5,7.4349]
[1718851359198,20.0,134.54,134.53,7.4332]
[1718851359507,23.8427,134.59,134.54,7.4324]
[1718851359807,20.0,134.58,134.54,7.4324]
[1718851360606,0.51,134.57,134.54,7.4324]
[1718851360896,0.17,134.56,134.54,7.4324]
[1718851361298,0.17,134.56,134.44,6.0073]
[1718851361473,0.17,134.56,134.52,7.4333]
[1718851361679,0.17,134.55,134.52,7.4333]
[1718851361874,0.51,134.55,134.52,7.4333]
[1718851364295,0.51,134.55,134.53,7.4332]
[1718851364692,0.51,134.55,134.52,7.4337]
[1718851364989,0.17,134.54,134.52,7.4337]
[1718851365195,0.51,134.54,134.51,7.4341]
[1718851366793,7.6033,134.53,134.44,6.0073]
[1718851366997,0.51,134.52,134.44,6.0073]
[1718851367299,0.51,134.52,134.5,7.4349]
[1718851368700,0.51,134.52,134.49,7.4352]
[1718851369391,0.51,134.52,134.5,7.4348]
[1718851369694,0.51,134.52,134.44,6.0073]
[1718851369901,0.51,134.52,134.49,7.4353]
[1718851370577,0.17,134.51,134.48,7.436]
[1718851371193,15.461,134.51,134.46,7.437]
[1718851371377,20.34,134.5,134.46,7.437]
[1718851371584,0.17,134.49,134.45,7.4375]
[1718851371779,0.17,134.49,134.46,7.4371]
[1718851372197,20.51,134.5,134.4,6.0405]
[1718851372519,20.17,134.5,134.48,7.4358]
[1718851372997,0.17,134.5,134.49,7.4354]
[1718851373220,0.17,134.52,134.5,7.4347]
[1718851373385,0.68,134.52,134.5,7.4347]
[1718851373584,20.68,134.52,134.5,7.4347]
[1718851374115,20.68,134.52,134.49,7.4352]
[1718851374983,20.68,134.52,134.48,7.4358]
[1718851376307,20.68,134.52,134.49,7.4354]
[1718851377085,15.4431,134.54,134.43,15.4476]
[1718851377286,20.0,134.53,134.49,7.4349]
[1718851377484,20.0,134.53,134.5,7.4348]
[1718851377806,20.0,134.53,134.51,7.4341]
[1718851378303,20.0,134.53,134.5,7.4347]
[1718851378599,15.9531,134.54,134.52,7.4338]
[1718851378801,28.3547,134.57,134.52,7.4338]
[1718851379101,28.3548,134.57,134.52,7.4336]
[1718851379302,20.0,134.56,134.52,7.4336]
[1718851379509,20.0,134.56,134.46,28.9505]
[1718851379510,20.0,134.56,134.53,7.4332]
[1718851380097,0.34,134.55,134.53,7.4332]
[1718851380706,0.34,134.55,134.52,7.4336]
[1718851381019,7.7729,134.54,134.49,7.4354]
[1718851381311,20.51,134.53,134.44,20.0]
[1718851381514,0.17,134.52,134.43,21.9993]
[1718851381695,0.51,134.52,134.48,7.4355]
[1718851382116,0.51,134.52,134.43,21.9993]
[1718851382117,20.9234,134.57,134.44,44.68]
[1718851382429,28.1119,134.56,134.51,7.4341]
[1718851383499,7.4335,134.53,134.48,7.4359]
[1718851383700,0.51,134.52,134.43,21.9993]
[1718851383886,0.51,134.52,134.44,65.0]
[1718851384086,20.0,134.54,134.5,7.4346]
[1718851384319,0.51,134.53,134.44,20.0]
[1718851384485,0.17,134.5,134.46,7.437]
[1718851384692,7.6053,134.5,134.45,7.4374]
[1718851384992,20.51,134.49,134.46,7.4371]
[1718851385189,0.17,134.48,134.45,7.4374]
[1718851385391,0.17,134.48,134.4,6.3929]
[1718851385604,0.17,134.48,134.46,7.4371]
[1718851386405,0.17,134.48,134.4,6.3929]
[1718851386600,7.4382,134.45,134.4,7.4401]
[1718851386805,0.51,134.44,134.41,7.4396]
[1718851387099,0.51,134.44,134.4,7.4402]
[1718851387300,0.17,134.43,134.35,398.4916]
[1718851387696,0.17,134.43,134.41,7.4398]
[1718851387908,0.17,134.43,134.35,398.4916]
[1718851387909,0.51,134.44,134.42,7.4393]
[1718851388308,0.51,134.44,134.41,7.4397]
[1718851388585,0.17,134.43,134.41,7.4397]
[1718851388790,0.51,134.44,134.42,7.4392]
[1718851389419,0.17,134.43,134.41,7.4397]
[1718851389919,0.51,134.44,134.42,7.4389]
[1718851390293,4.6587,134.42,134.35,389.8427]
[1718851390602,4.6587,134.42,134.36,7.4422]
[1718851390603,0.68,134.41,134.36,7.4422]
[1718851390799,0.68,134.41,134.37,7.4419]
[1718851390800,20.68,134.41,134.37,7.4419]
[1718851391213,20.68,134.41,134.38,7.4415]
[1718851391596,20.68,134.41,134.32,16.4656]
[1718851391890,0.68,134.41,134.33,45.0]
[1718851392288,0.68,134.41,134.39,7.4408]
[1718851394301,0.68,134.41,134.38,7.4415]
[1718851394913,0.68,134.41,134.37,7.442]
[1718851397714,8.1201,134.41,134.36,7.4424]
[1718851397893,0.17,134.39,134.36,7.4424]
[1718851398093,0.68,134.39,134.36,7.4424]
[1718851399502,0.68,134.39,134.38,7.4415]
[1718851399900,0.34,134.39,134.38,7.4415]
[1718851400111,20.0,134.43,134.31,51.2367]
[1718851400314,20.0,134.43,134.4,7.44]
[1718851400613,20.0,134.43,134.4,7.4404]
[1718851401316,20.0,134.43,134.42,7.4393]
[1718851401618,16.3797,134.44,134.42,7.4393]
[1718851401827,16.3797,134.44,134.41,7.4397]
[1718851402004,16.3797,134.44,134.39,7.4408]
[1718851402403,16.3797,134.44,134.4,7.4403]
[1718851402605,16.3797,134.44,134.41,7.4397]
[1718851402801,16.3797,134.44,134.36,15.1903]
[1718851402802,0.51,134.43,134.42,7.439]
[1718851403001,0.17,134.43,134.42,7.439]
[1718851403309,20.0,134.46,134.37,6.5098]
[1718851403512,20.0,134.46,134.43,7.4384]
[1718851403694,28.362,134.48,134.37,28.8198]
[1718851403695,20.0,134.47,134.37,28.8198]
[1718851403902,27.437,134.47,134.42,7.439]
[1718851405017,27.437,134.47,134.33,21.727]
[1718851405018,20.0,134.47,134.33,21.727]
[1718851405209,45.0,134.46,134.37,7.4417]
[1718851405520,45.0,134.46,134.33,21.727]
[1718851405521,0.17,134.44,134.33,21.727]
[1718851405813,7.6086,134.44,134.39,7.441]
[1718851406023,20.51,134.43,134.4,7.4404]
[1718851406208,0.51,134.43,134.4,7.4404]
[1718851408121,27.4379,134.45,134.33,44.097]
[1718851408122,20.0,134.45,134.42,7.4393]
[1718851408326,0.17,134.44,134.42,7.4393]
[1718851408633,20.0,134.46,134.44,7.4382]
[1718851408802,16.2672,134.48,134.36,0.17]
[1718851408803,20.0,134.47,134.46,7.4371]
[1718851408999,7.4345,134.51,134.46,7.4371]
[1718851409206,27.4351,134.5,134.45,7.4376]
[1718851409425,7.4355,134.49,134.45,7.4376]
[1718851409625,7.4355,134.49,134.44,7.438]
[1718851409808,20.0,134.48,134.45,7.4376]
[1718851410014,20.0,134.5,134.46,7.4371]
[1718851410215,20.0,134.5,134.47,7.4364]
[1718851410408,20.0,134.51,134.47,7.4364]
[1718851410815,28.2973,134.52,134.47,7.4364]
[1718851411021,7.4344,134.51,134.46,7.4369]
[1718851411728,16.2047,134.52,134.48,7.4359]
[1718851412028,23.6385,134.52,134.47,7.4364]
[1718851412231,20.0,134.51,134.47,7.4364]
[1718851412405,0.51,134.5,134.47,7.4364]
[1718851412605,20.7212,134.6,134.49,0.17]
[1718851412822,20.7212,134.6,134.54,7.4323]
[1718851412823,20.0,134.59,134.54,7.4323]
[1718851413038,20.7212,134.64,134.57,7.431]
[1718851413225,20.0,134.63,134.5,0.17]
[1718851413423,20.0,134.63,134.52,38.8064]
[1718851413733,20.7212,134.64,134.52,38.8064]
[1718851413734,120.7212,134.64,134.54,6.1648]
[1718851414031,120.7212,134.64,134.55,7.4316]
[1718851414032,7.4289,134.61,134.55,7.4316]
[1718851414226,7.4285,134.62,134.53,45.0]
[1718851414534,7.43,134.59,134.53,45.0]
[1718851414729,139.2895,134.64,134.5,26.1648]
[1718851414730,7.4295,134.6,134.54,7.4323]
[1718851414924,0.68,134.59,134.54,7.4323]
[1718851415229,0.68,134.59,134.55,7.4321]
[1718851415648,0.17,134.58,134.48,16.3106]
[1718851415929,0.17,134.58,134.46,6.4518]
[1718851415930,7.4339,134.52,134.47,7.4363]
[1718851416128,0.17,134.55,134.46,6.4518]
[1718851416307,20.0,134.56,134.53,7.4332]
[1718851416507,20.0,134.56,134.46,28.8218]
[1718851416508,0.51,134.55,134.52,7.4336]
[1718851416718,28.1122,134.55,134.49,7.4351]
[1718851416923,28.1122,134.55,134.46,6.4518]
[1718851417127,20.68,134.55,134.46,6.4518]
[1718851417914,0.17,134.53,134.48,7.4359]
[1718851418109,0.68,134.53,134.46,6.4518]
[1718851418310,20.68,134.53,134.49,7.4353]
[1718851418525,20.68,134.53,134.5,7.4349]
[1718851418725,20.0,134.53,134.46,6.4518]
[1718851418922,20.17,134.56,134.52,7.4338]
[1718851419119,20.0,134.56,134.46,28.8218]
[1718851419326,4.6587,134.59,134.54,7.4323]
[1718851419527,4.6587,134.59,134.55,7.4321]
[1718851419830,7.4295,134.6,134.54,7.4325]
[1718851420035,16.2999,134.61,134.47,88.05]
[1718851420338,7.4297,134.6,134.54,7.4325]
[1718851420543,16.2999,134.61,134.56,7.4314]
[1718851420916,20.0,134.6,134.56,7.4314]
[1718851421325,20.0,134.6,134.47,88.05]
[1718851421530,7.4301,134.59,134.54,7.4326]
[1718851421730,20.0,134.58,134.54,7.4326]
[1718851422028,0.51,134.57,134.47,88.05]
[1718851422235,0.51,134.57,134.55,7.432]
[1718851422636,0.51,134.57,134.54,7.4325]
[1718851423018,0.51,134.57,134.52,7.4334]
[1718851423219,0.17,134.56,134.5,7.4347]
[1718851423541,7.4322,134.55,134.5,7.4347]
[1718851423743,0.34,134.54,134.5,7.4347]
[1718851424237,0.34,134.53,134.49,7.4352]
[1718851424439,7.604,134.52,134.46,6.4518]
[1718851424629,0.34,134.51,134.47,7.4362]
[1718851424933,0.34,134.51,134.44,16.3373]
[1718851424934,0.34,134.51,134.49,7.4353]
[1718851425143,0.17,134.52,134.44,16.3373]
[1718851425440,0.51,134.52,134.49,7.4352]
[1718851425942,20.0,134.53,134.45,0.17]
[1718851426320,4.6587,134.58,134.51,7.4341]
[1718851426524,4.6587,134.58,134.52,7.4336]
[1718851426720,4.6587,134.58,134.45,42.54]
[1718851426931,4.6587,134.58,134.55,7.4319]
[1718851427732,4.6587,134.58,134.54,7.4325]
[1718851427933,0.34,134.57,134.45,20.0]
[1718851428125,7.4327,134.54,134.45,20.0]
[1718851428331,28.1134,134.53,134.48,7.4358]
[1718851428541,0.17,134.52,134.49,7.4354]
[1718851428939,20.0,134.54,134.44,16.3373]
[1718851429139,0.51,134.55,134.45,22.37]
[1718851429346,0.51,134.55,134.51,7.4341]
[1718851429529,0.17,134.54,134.51,7.4341]
[1718851430164,24.02678619,134.61,134.46,0.17]
[1718851430457,27.4297,134.6,134.55,7.4321]
[1718851430828,20.0,134.6,134.55,7.4321]
[1718851431137,27.4296,134.6,134.55,7.4321]
[1718851432032,0.68,134.59,134.55,7.4321]
[1718851432930,0.68,134.59,134.5,6.2669]
[1718851433237,0.17,134.57,134.53,7.4329]
[1718851433439,20.68,134.57,134.53,7.4329]
[1718851433644,0.34,134.56,134.54,7.4327]
[1718851434229,20.0,134.58,134.55,7.4318]
[1718851434429,20.68,134.59,134.55,7.4318]
[1718851434730,20.0,134.59,134.58,7.4305]
[1718851434939,20.0,134.59,134.51,15.0718]
[1718851434940,20.0,134.6,134.51,37.4418]
[1718851435133,16.2999,134.61,134.58,7.4302]
[1718851435755,16.2999,134.61,134.57,7.431]
[1718851435935,0.17,134.6,134.57,7.431]
[1718851436133,0.51,134.6,134.57,7.431]
[1718851436337,16.2999,134.61,134.57,7.431]
[1718851437344,20.0,134.6,134.51,15.0718]
[1718851437655,20.0,134.6,134.54,7.4325]
[1718851437656,0.17,134.58,134.54,7.4325]
[1718851437824,0.17,134.58,134.55,7.4319]
[1718851438030,0.17,134.58,134.51,15.0718]
[1718851438242,0.17,134.58,134.55,7.432]
[1718851439135,0.17,134.58,134.54,7.4325]
[1718851439453,20.17,134.58,134.54,7.4325]
[1718851439647,0.51,134.57,134.54,7.4325]
[1718851440030,7.433,134.54,134.49,7.435]
[1718851440229,7.4339,134.52,134.46,7.4366]
[1718851440551,0.17,134.5,134.44,6.3548]
[1718851440729,0.17,134.5,134.47,7.4362]
[1718851440932,0.17,134.5,134.43,16.4644]
[1718851441132,0.17,134.5,134.41,6.6307]
[1718851441348,20.17,134.5,134.41,6.6307]
[1718851441546,0.17,134.48,134.44,7.4379]
[1718851441743,20.17,134.48,134.45,7.4374]
[1718851441947,20.51,134.47,134.45,7.4374]
[1718851442143,0.17,134.47,134.44,7.4377]
[1718851442433,0.34,134.48,134.39,16.4128]
[1718851442633,0.17,134.46,134.42,7.439]
[1718851442853,0.34,134.46,134.43,7.4384]
[1718851443062,0.34,134.45,134.43,7.4384]
[1718851443940,20.0,134.48,134.46,7.437]
[1718851444147,0.68,134.49,134.46,7.437]
[1718851444654,0.68,134.49,134.37,6.2942]
[1718851444835,0.68,134.49,134.38,45.0]
[1718851446253,7.4367,134.47,134.42,7.4391]
[1718851446456,20.51,134.46,134.42,7.4391]
[1718851446841,20.0,134.47,134.39,0.17]
[1718851447063,4.6587,134.51,134.42,7.439]
[1718851447064,0.34,134.46,134.42,7.439]
[1718851447244,0.17,134.45,134.42,7.439]
[1718851447587,20.17,134.5,134.38,0.17]
[1718851447750,0.17,134.48,134.45,7.4377]
[1718851448054,0.17,134.48,134.44,7.438]
[1718851448253,0.17,134.48,134.43,7.4383]
[1718851449556,0.17,134.48,134.37,28.6642]
[1718851449764,20.51,134.49,134.45,7.4373]
[1718851449955,20.51,134.49,134.44,7.4381]
[1718851449956,0.17,134.48,134.44,7.4381]
[1718851450258,0.17,134.48,134.38,68.05]
[1718851450259,20.0,134.49,134.45,7.4376]
[1718851450438,20.0,134.49,134.48,7.436]
[1718851450636,24.0402,134.54,134.42,16.1929]
[1718851450842,20.0,134.53,134.49,7.4353]
[1718851451245,20.0,134.53,134.5,7.4348]
[1718851451443,7.4319,134.56,134.5,7.4348]
[1718851451642,20.0,134.55,134.5,7.4348]
[1718851451837,7.4327,134.54,134.49,7.4352]
[1718851452036,7.4329,134.54,134.49,7.4353]
[1718851452449,7.4329,134.54,134.48,7.4358]
[1718851452762,39.3076,134.58,134.49,7.4353]
[1718851452944,7.4325,134.55,134.5,7.4347]
[1718851453149,7.4325,134.55,134.49,7.4352]
[1718851453349,27.4328,134.54,134.49,7.4352]
[1718851453560,0.68,134.53,134.49,7.4352]
[1718851453951,0.68,134.53,134.5,7.4348]
[1718851454152,20.0,134.54,134.51,7.4343]
[1718851454463,20.0,134.54,134.44,28.8921]
[1718851454464,20.0,134.55,134.52,7.4335]
[1718851454638,20.0,134.56,134.52,7.4335]
[1718851454839,27.4318,134.56,134.51,7.4341]
[1718851455538,0.51,134.55,134.5,7.4347]
[1718851455737,0.17,134.54,134.5,7.4347]